bitfinex-derivatives/quotes_SOLF0:USTF0_20240926
["timestamp","ask_amount","ask_price","bid_price","bid_amount"]
[1727332412425,10.18,150.94,150.89,10.18]
[1727332413834,3.3133,150.93,150.9,3.3138]
[1727332415328,13.4932,150.94,150.9,3.3138]
[1727332415536,10.18,150.94,150.9,3.3138]
[1727332416434,13.4931,150.94,150.9,3.3138]
[1727332416838,3.3131,150.94,150.91,3.3137]
[1727332418132,2.694,150.97,150.93,10.18]
[1727332418335,1.2676,150.98,150.96,10.18]
[1727332418530,10.18,151.02,150.96,10.18]
[1727332418836,10.18,151.02,150.96,13.4925]
[1727332420337,3.3119,151.0,150.96,13.4925]
[1727332420838,10.18,151.02,150.96,13.4925]
[1727332422233,3.3119,151.0,150.96,13.4925]
[1727332422439,10.18,151.02,150.96,13.4925]
[1727332423540,3.312,150.99,150.96,13.4925]
[1727332424743,3.312,150.99,150.96,3.3125]
[1727332424942,3.312,150.99,150.96,13.4925]
[1727332427148,3.3122,150.98,150.95,13.4928]
[1727332427346,10.18,150.98,150.9,18.57354383]
[1727332427645,3.3126,150.96,150.93,13.4931]
[1727332428443,13.4926,150.96,150.93,13.4931]
[1727332429341,10.18,150.96,150.93,13.4931]
[1727332430144,13.4926,150.96,150.93,13.4931]
[1727332430845,4.1485,151.04,150.94,13.493]
[1727332431047,10.18,150.99,150.94,13.493]
[1727332431249,10.18,150.99,150.95,3.3128]
[1727332431250,3.3123,150.98,150.95,3.3128]
[1727332431950,3.312,150.99,150.96,3.3125]
[1727332433548,3.3123,150.98,150.95,3.3128]
[1727332433744,3.3123,150.98,150.95,13.4928]
[1727332434548,3.3121,150.99,150.96,13.4925]
[1727332436152,4.1485,151.04,150.97,10.18]
[1727332436153,14.3285,151.04,150.97,10.18]
[1727332436348,14.3285,151.04,150.99,10.18]
[1727332436548,3.3114,151.02,150.99,10.18]
[1727332436752,3.3114,151.02,150.98,10.18]
[1727332437052,10.18,151.03,150.98,10.18]
[1727332438550,3.3117,151.01,150.98,13.492]
[1727332439647,10.18,151.03,150.97,13.4922]
[1727332440154,3.3119,151.0,150.97,3.3122]
[1727332440358,10.18,151.0,150.97,3.3122]
[1727332440757,3.3121,150.98,150.95,3.3128]
[1727332440955,13.4921,150.98,150.95,3.3128]
[1727332444661,3.3121,150.98,150.95,3.3128]
[1727332444861,3.312,150.99,150.96,13.4925]
[1727332446762,14.3285,151.04,150.98,10.18]
[1727332446966,14.3285,151.04,151.0,10.18]
[1727332447157,3.3112,151.03,151.01,10.18]
[1727332447361,4.1485,151.04,151.02,10.18]
[1727332448769,7.4595,151.04,151.02,10.18]
[1727332449865,6.0572,151.04,151.02,10.18]
[1727332450658,1.3534,151.04,151.02,13.4912]
[1727332450857,1.3534,151.04,151.02,10.18]
[1727332451059,4.6643,151.04,151.02,10.18]
[1727332451760,10.18,151.08,151.03,10.18]
[1727332452157,3.3106,151.06,151.03,10.18]
[1727332452969,10.18,151.08,151.03,10.18]
[1727332453558,3.3106,151.05,151.03,10.18]
[1727332454066,3.3106,151.05,151.02,13.4911]
[1727332455774,3.3105,151.06,151.02,13.4911]
[1727332457871,3.31,151.08,151.05,10.18]
[1727332458666,3.31,151.08,151.05,13.4906]
[1727332458870,3.3102,151.07,151.05,10.18]
[1727332459569,1.3989,151.1,151.05,13.4904]
[1727332459766,11.5789,151.1,151.05,13.4904]
[1727332459970,11.5789,151.1,151.05,10.18]
[1727332461675,10.18,151.08,150.99,0.6615]
[1727332461869,10.18,151.07,151.02,10.18]
[1727332462671,10.18,151.08,151.02,10.18]
[1727332463269,3.3104,151.06,151.03,3.3109]
[1727332463972,3.3104,151.06,151.03,13.4909]
[1727332465167,3.3104,151.06,151.03,3.3109]
[1727332465569,3.3107,151.05,151.01,13.4913]
[1727332466070,3.3109,151.04,151.01,10.18]
[1727332466668,3.3106,151.05,151.01,10.18]
[1727332466868,3.3106,151.05,151.02,10.18]
[1727332467571,3.3106,151.05,151.02,13.4911]
[1727332469073,3.3108,151.04,151.01,13.4914]
[1727332469466,3.3107,151.05,151.02,10.18]
[1727332470474,3.3107,151.05,151.02,13.4912]
[1727332471966,3.3107,151.05,151.02,10.18]
[1727332472181,3.3109,151.04,151.01,13.4914]
[1727332473275,10.18,151.07,151.01,10.18]
[1727332473276,3.3111,151.03,151.01,10.18]
[1727332475374,3.3109,151.04,151.01,10.18]
[1727332476175,3.3109,151.04,151.01,13.4915]
[1727332478283,6.6121,151.26,151.03,10.18]
[1727332478483,10.18,151.19,151.13,10.18]
[1727332478676,10.18,151.19,150.99,11.81218425]
[1727332478677,3.27282771,151.19,150.99,8.59705246]
[1727332478875,1.3001,151.21,151.0,6.47527996]
[1727332479076,13.50483519,151.2,151.14,10.18]
[1727332479276,3.3078,151.18,151.14,10.18]
[1727332480380,3.3078,151.18,151.12,19.1889]
[1727332481787,3.3082,151.16,151.1,15.88]
[1727332482390,3.308,151.17,151.11,3.3092]
[1727332482685,3.308,151.17,151.12,15.88]
[1727332482886,4.5844,151.18,151.12,15.88]
[1727332483785,4.5844,151.18,151.13,3.3088]
[1727332484182,4.5844,151.18,151.12,15.88]
[1727332484486,4.5844,151.18,151.12,19.1889]
[1727332485483,4.5844,151.18,151.12,3.3089]
[1727332485782,3.308,151.17,151.12,19.1889]
[1727332486181,4.5844,151.18,151.13,3.3088]
[1727332486689,1.2766,151.18,151.14,3.3085]
[1727332487988,4.5844,151.18,151.14,3.3085]
[1727332491988,3.308,151.17,151.14,3.3085]
[1727332493890,3.308,151.17,151.13,3.3088]
[1727332497395,3.308,151.17,151.14,3.3086]
[1727332499098,3.3084,151.16,151.12,15.88]
[1727332499293,1.2766,151.18,151.1,15.88]
[1727332499498,3.3085,151.15,151.11,3.3092]
[1727332500299,3.3087,151.14,151.11,3.3092]
[1727332500796,1.2766,151.18,151.11,3.3092]
[1727332500995,3.3085,151.15,151.11,3.3092]
[1727332501189,3.3085,151.15,151.12,3.3091]
[1727332501994,3.3083,151.16,151.12,3.3091]
[1727332502496,3.3083,151.16,151.14,10.16]
[1727332503792,3.3083,151.16,151.13,3.3088]
[1727332504100,3.3083,151.16,151.14,10.16]
[1727332507101,3.3086,151.15,151.07,82.69254907]
[1727332507300,3.3086,151.15,151.13,10.16]
[1727332507696,3.3082,151.16,151.13,10.16]
[1727332508000,3.3082,151.16,151.14,10.16]
[1727332509498,3.3081,151.17,151.14,10.16]
[1727332509899,1.2766,151.18,151.13,10.16]
[1727332509900,3.3083,151.16,151.13,10.16]
[1727332510804,3.3083,151.16,151.13,13.4688]
[1727332511004,3.3083,151.16,151.15,10.16]
[1727332511200,3.3081,151.17,151.15,10.16]
[1727332512201,1.3001,151.21,151.16,10.16]
[1727332512604,2.5984,151.21,151.16,10.16]
[1727332512812,3.3079,151.18,151.16,10.16]
[1727332513104,10.16,151.2,151.16,10.16]
[1727332514804,3.308,151.17,151.16,10.16]
[1727332515209,3.308,151.17,151.15,10.16]
[1727332518116,3.3082,151.16,151.13,3.3087]
[1727332518312,3.3082,151.16,151.13,13.4687]
[1727332519213,10.16,151.18,151.13,13.4687]
[1727332519913,3.3085,151.15,151.13,10.16]
[1727332520816,3.3085,151.15,151.12,3.3089]
[1727332521010,10.16,151.13,151.07,79.42]
[1727332521216,10.16,151.13,151.07,89.58]
[1727332521415,3.3094,151.11,151.07,92.89]
[1727332522712,3.3097,151.09,150.99,3.26355249]
[1727332522909,10.16,151.1,151.05,10.16]
[1727332523317,3.3101,151.08,151.05,10.16]
[1727332523812,3.3102,151.07,151.04,3.3107]
[1727332524014,3.3102,151.07,151.04,13.4707]
[1727332524216,3.3102,151.07,151.04,10.16]
[1727332524409,10.16,151.09,151.04,10.16]
[1727332524410,3.3104,151.06,151.04,10.16]
[1727332527019,3.3102,151.07,151.04,10.16]
[1727332527412,2.6547,151.13,151.05,10.16]
[1727332527618,10.16,151.09,151.04,3.3106]
[1727332527815,10.16,151.09,151.04,13.4706]
[1727332528818,3.3102,151.07,151.04,13.4706]
[1727332529820,3.31,151.08,151.04,13.4706]
[1727332532725,3.3102,151.07,151.04,13.4706]
[1727332533221,10.16,151.09,150.99,82.79132146]
[1727332533525,10.16,151.09,151.04,10.16]
[1727332535822,3.3103,151.07,151.04,13.4708]
[1727332537026,3.3107,151.05,150.98,152.9223895]
[1727332537226,3.3107,151.05,151.02,10.16]
[1727332538324,3.3107,151.05,151.01,10.16]
[1727332538826,3.3109,151.04,151.01,3.3114]
[1727332539026,3.3109,151.04,151.01,13.4714]
[1727332539323,10.16,151.06,151.02,10.16]
[1727332540124,1.2686,151.07,151.02,10.16]
[1727332540828,3.3107,151.05,151.02,13.4711]
[1727332542126,1.2686,151.07,151.02,10.16]
[1727332542429,1.2686,151.07,151.04,13.4707]
[1727332542727,3.3105,151.06,151.03,10.16]
[1727332544326,3.3105,151.06,151.03,13.471]
[1727332547134,10.16,151.06,151.01,10.16]
[1727332548237,10.16,151.06,150.98,72.8005895]
[1727332548539,10.16,151.06,151.01,10.16]
[1727332548733,3.3108,151.05,151.02,3.3113]
[1727332551927,3.3105,151.06,151.02,3.3113]
[1727332552241,11.4286,151.07,151.02,3.3113]
[1727332553834,3.3106,151.05,151.02,3.3113]
[1727332554040,11.4286,151.07,151.03,3.311]
[1727332555235,11.4286,151.07,150.98,72.8005895]
[1727332555236,10.16,151.05,151.01,3.3114]
[1727332555439,10.16,151.05,151.01,13.4714]
[1727332556741,13.4707,151.05,151.01,13.4714]
[1727332557236,11.4286,151.07,151.02,13.4712]
[1727332557440,3.3105,151.06,151.02,13.4712]
[1727332558340,3.3106,151.05,151.02,13.4712]
[1727332560134,3.3106,151.05,151.02,10.16]
[1727332560333,3.3109,151.04,151.01,13.4714]
[1727332560733,13.4709,151.04,151.01,3.3114]
[1727332561237,10.16,151.04,151.01,3.3114]
[1727332561444,10.16,151.04,151.02,3.3112]
[1727332564542,10.16,151.05,151.02,3.3112]
[1727332566141,13.4706,151.05,151.02,3.3112]
[1727332568546,10.16,151.05,151.02,3.3112]
[1727332568736,10.16,151.05,151.03,3.311]
[1727332570538,1.4026,151.08,151.02,10.16]
[1727332570745,11.5626,151.08,151.02,10.16]
[1727332571042,14.8726,151.08,151.05,3.3106]
[1727332571443,11.5626,151.08,151.02,10.16]
[1727332571749,10.16,151.07,151.02,10.16]
[1727332572843,13.4702,151.07,151.04,3.3107]
[1727332578043,10.16,151.05,151.03,3.311]
[1727332579848,13.4705,151.06,151.02,3.3112]
[1727332580052,13.4705,151.06,151.01,10.16]
[1727332580547,10.16,151.06,151.03,3.3109]
[1727332581844,3.3102,151.07,151.03,3.3109]
[1727332582043,2.6002,151.12,151.05,10.16]
[1727332582246,10.16,151.1,151.05,10.16]
[1727332582445,13.4697,151.1,151.06,3.3102]
[1727332584948,10.16,151.08,151.05,3.3106]
[1727332585151,10.16,151.07,151.05,3.3106]
[1727332585650,10.16,151.07,151.04,3.3108]
[1727332585954,10.16,151.06,151.0,10.16]
[1727332586144,10.16,151.04,151.03,3.3109]
[1727332586547,13.471,151.04,151.0,3.3116]
[1727332586747,10.16,151.01,151.0,3.3116]
[1727332591945,10.16,151.01,150.98,79.48]
[1727332592146,10.16,151.0,150.89,0.6641]
[1727332592350,10.16,151.0,150.92,10.16]
[1727332592351,10.16,150.97,150.92,10.16]
[1727332592552,10.16,150.97,150.93,14.01804736]
[1727332592754,10.16,150.97,150.94,9.82231113]
[1727332592954,10.16,150.97,150.94,3.313]
[1727332593550,13.4723,150.98,150.94,3.313]
[1727332594263,10.16,150.98,150.93,10.16]
[1727332594455,1.2952,151.0,150.89,0.6641]
[1727332594456,1.2952,151.0,150.95,10.16]
[1727332594650,11.4552,151.0,150.95,10.16]
[1727332594854,14.7669,151.0,150.96,3.3124]
[1727332596454,14.7669,151.0,150.95,10.16]
[1727332596656,11.4552,151.0,150.97,3.3124]
[1727332597448,14.7671,151.0,150.96,3.3125]
[1727332598149,4.6071,151.0,150.97,3.3123]
[1727332598353,14.7671,151.0,150.97,3.3123]
[1727332598553,11.4552,151.0,150.97,3.3123]
[1727332599756,14.7669,151.0,150.97,3.3123]
[1727332600050,11.4552,151.0,150.96,3.3125]
[1727332600256,10.16,150.99,150.96,3.3125]
[1727332600458,1.2952,151.0,150.96,3.3125]
[1727332600656,10.16,150.99,150.96,3.3125]
[1727332601252,13.4721,150.99,150.96,3.3125]
[1727332601552,13.4721,150.99,150.95,3.3127]
[1727332601953,13.4721,150.99,150.96,3.3126]
[1727332603549,13.4721,150.99,150.95,3.3128]
[1727332605064,3.3122,150.98,150.95,3.3128]
[1727332605362,10.16,150.97,150.94,3.313]
[1727332606157,4.6071,151.0,150.96,3.3125]
[1727332606458,11.4552,151.0,150.96,3.3125]
[1727332606762,10.16,150.99,150.96,3.3125]
[1727332607457,4.607,151.0,150.97,3.3123]
[1727332607657,14.767,151.0,150.95,10.16]
[1727332608254,14.767,151.0,150.96,3.3124]
[1727332608558,14.767,151.0,150.95,10.16]
[1727332608960,4.607,151.0,150.95,10.16]
[1727332609167,14.767,151.0,150.95,10.16]
[1727332609757,14.767,151.0,150.97,3.3123]
[1727332610566,10.16,150.98,150.94,72.81881771]
[1727332610766,10.16,150.96,150.94,72.81881771]
[1727332611161,10.16,150.97,150.95,3.3128]
[1727332611356,1.3017,150.99,150.94,82.97881771]
[1727332611561,11.4617,150.99,150.94,82.97881771]
[1727332612962,14.7737,150.99,150.94,82.97881771]
[1727332613167,10.16,150.98,150.94,72.81881771]
[1727332613560,10.16,150.98,150.95,3.3127]
[1727332614366,13.4722,150.98,150.95,3.3127]
[1727332618868,13.4724,150.97,150.94,76.13181771]
[1727332619064,1.3017,150.99,150.89,79.5]
[1727332619065,10.16,150.95,150.89,79.5]
[1727332619273,10.16,150.95,150.89,10.16]
[1727332619472,10.16,150.96,150.92,10.16]
[1727332620368,13.4726,150.96,150.93,3.3131]
[1727332620569,10.16,150.96,150.93,3.3131]
[1727332621563,1.3017,150.99,150.94,10.16]
[1727332621762,1.3017,150.99,150.95,10.16]
[1727332622371,1.3017,150.99,150.96,3.3124]
[1727332624766,1.3017,150.99,150.97,3.3124]
[1727332631771,1.3017,150.99,150.96,3.3125]
[1727332631977,11.4617,150.99,150.9,79.5]
[1727332632177,11.4617,150.99,150.89,81.455]
[1727332632373,10.16,150.97,150.94,3.3129]
[1727332633172,10.16,150.96,150.89,81.455]
[1727332633379,10.16,150.96,150.91,10.16]
[1727332633777,10.16,150.96,150.93,3.3131]
[1727332634284,10.16,150.96,150.91,10.16]
[1727332634285,13.4729,150.95,150.91,13.4736]
[1727332634481,13.4729,150.95,150.91,3.3136]
[1727332635084,13.4729,150.95,150.92,3.3135]
[1727332636174,13.4729,150.95,150.91,3.3136]
[1727332636681,10.16,150.94,150.91,3.3136]
[1727332636981,10.16,150.94,150.89,89.66]
[1727332636982,10.16,150.93,150.9,3.3137]
[1727332637182,10.16,150.91,150.89,79.5]
[1727332637679,13.4738,150.91,150.89,79.5]
[1727332638387,10.16,150.9,150.89,79.5]
[1727332638679,10.16,150.91,150.89,79.5]
[1727332638880,10.16,150.92,150.89,79.5]
[1727332639479,10.16,150.92,150.89,82.8139]
[1727332640077,1.3012,150.93,150.9,3.3138]
[1727332640282,1.3012,150.93,150.9,10.16]
[1727332640987,1.3273,150.94,150.91,3.3135]
[1727332643882,13.4729,150.95,150.92,3.3135]
[1727332644087,3.3129,150.95,150.92,13.4735]
[1727332646484,13.4729,150.95,150.92,3.3135]
[1727332646992,1.2814,150.97,150.92,10.16]
[1727332647491,11.4414,150.97,150.92,10.16]
[1727332647996,14.7539,150.97,150.94,3.313]
[1727332648179,11.4414,150.97,150.92,10.16]
[1727332648885,3.3126,150.96,150.93,3.3131]
[1727332649084,13.4726,150.96,150.93,3.3131]
[1727332652087,14.7539,150.97,150.94,3.313]
[1727332652288,1.2814,150.97,150.94,10.16]
[1727332652487,10.16,150.98,150.94,10.16]
[1727332653891,13.4721,150.98,150.95,3.3127]
[1727332654393,10.16,151.0,150.95,10.16]
[1727332655792,3.312,150.99,150.96,3.3125]
[1727332657385,3.3117,151.0,150.97,3.3123]
[1727332657589,13.4717,151.0,150.97,3.3123]
[1727332661396,13.4717,151.0,150.98,3.3121]
[1727332661397,10.16,151.0,150.98,3.3121]
[1727332661905,3.3115,151.01,150.98,3.3121]
[1727332662202,10.16,151.0,150.98,3.3121]
[1727332662591,13.4717,151.0,150.98,3.3121]
[1727332662801,13.4717,151.0,150.97,3.3123]
[1727332670108,13.4717,151.0,150.93,14.01695278]
[1727332670109,9.899316,151.14,150.99,10.16]
[1727332670410,9.899316,151.14,150.92,5.9102209]
[1727332670411,10.16,151.05,151.01,10.16]
[1727332671208,13.471,151.04,151.0,3.3116]
[1727332671406,3.311,151.04,151.01,10.16]
[1727332672810,3.311,151.04,151.01,13.4713]
[1727332673012,3.3111,151.03,150.96,7.49958451]
[1727332673318,3.3111,151.03,150.99,10.16]
[1727332674811,3.3111,151.03,151.0,3.3116]
[1727332679111,13.4709,151.04,151.0,3.3116]
[1727332679918,3.3109,151.04,151.01,3.3114]
[1727332680525,3.3112,151.03,150.99,10.16]
[1727332681415,3.3109,151.04,150.99,10.16]
[1727332681616,10.16,151.06,151.02,10.16]
[1727332682119,2.6967,151.08,151.03,10.16]
[1727332682623,2.6967,151.08,151.04,13.4707]
[1727332682819,2.6967,151.08,151.04,10.16]
[1727332683623,1.3011,151.08,151.04,10.16]
[1727332684217,4.6112,151.08,151.05,3.3106]
[1727332684728,4.6112,151.08,151.04,13.4708]
[1727332686127,3.3101,151.08,151.05,3.3106]
[1727332686330,3.3098,151.09,151.05,3.3106]
[1727332686522,3.3098,151.09,151.05,13.4706]
[1727332687324,3.3098,151.09,151.05,3.3106]
[1727332687730,13.4698,151.09,151.05,3.3106]
[1727332691130,3.31,151.08,151.05,3.3106]
[1727332691533,10.16,151.09,151.05,3.3106]
[1727332692036,13.4699,151.09,151.05,3.3106]
[1727332693241,3.31,151.08,151.04,13.4707]
[1727332695031,13.4698,151.09,151.04,10.16]
[1727332695232,3.3098,151.09,151.06,10.16]
[1727332695438,10.16,151.11,151.07,10.16]
[1727332695638,3.3096,151.1,151.07,10.16]
[1727332696230,10.16,151.08,151.0,79.48]
[1727332696437,10.16,151.08,151.02,10.16]
[1727332696638,3.3104,151.06,151.03,3.311]
[1727332697638,3.3103,151.07,151.03,3.311]
[1727332698933,10.16,151.05,151.02,3.3113]
[1727332699941,13.4706,151.05,151.01,3.3114]
[1727332700342,13.4706,151.05,151.0,10.16]
[1727332701038,10.16,151.03,150.98,79.46]
[1727332701235,10.16,151.02,150.98,79.46]
[1727332701442,10.16,151.02,150.98,82.7719]
[1727332702143,13.4714,151.02,150.98,82.7719]
[1727332702338,13.4714,151.02,150.99,3.3119]
[1727332702541,10.16,151.03,150.99,3.3119]
[1727332702746,2.6532,151.12,151.01,10.16]
[1727332703047,2.6532,151.12,150.98,79.46]
[1727332703048,10.16,151.07,151.03,3.3108]
[1727332703544,3.3104,151.06,151.02,13.4711]
[1727332704641,3.3104,151.06,151.03,3.311]
[1727332705146,13.4703,151.07,151.03,3.311]
[1727332705543,3.3105,151.06,151.02,13.4712]
[1727332705744,10.16,151.06,151.02,13.4712]
[1727332705939,10.16,151.03,150.98,79.46]
[1727332706141,10.16,151.03,150.98,89.62]
[1727332706545,10.16,151.03,151.0,3.3116]
[1727332708050,3.3109,151.04,151.0,3.3116]
[1727332709851,13.4713,151.03,150.99,3.3117]
[1727332710051,1.3749,151.05,150.97,10.16]
[1727332710052,10.16,151.02,150.97,10.16]
[1727332710440,3.3115,151.01,150.98,3.3121]
[1727332711041,2.6641,151.04,150.95,152.29943932]
[1727332711042,13.4718,151.0,150.96,10.16]
[1727332711653,13.4718,151.0,150.95,152.29943932]
[1727332711654,2.6641,151.04,150.98,10.16]
[1727332711948,10.16,151.03,150.98,10.16]
[1727332712144,13.4711,151.03,150.99,3.3118]
[1727332713250,13.4711,151.03,151.0,3.3117]
[1727332713251,3.3111,151.03,151.0,3.3117]
[1727332713647,4.6857,151.05,150.99,10.16]
[1727332713845,14.8457,151.05,150.99,10.16]
[1727332714048,3.3111,151.03,150.95,152.29943932]
[1727332714353,3.3111,151.03,150.99,10.16]
[1727332715854,3.3111,151.03,150.99,13.4719]
[1727332716651,13.4711,151.03,150.99,3.3119]
[1727332716857,3.3114,151.02,150.98,3.312]
[1727332718151,10.16,151.03,150.97,10.16]
[1727332718152,13.4711,151.03,150.99,3.3119]
[1727332721459,3.3113,151.02,150.99,3.3119]
[1727332723056,3.3113,151.02,150.98,3.3121]
[1727332723057,10.16,151.01,150.98,3.3121]
[1727332724749,3.3113,151.02,150.99,3.3119]
[1727332727362,10.16,151.01,150.98,3.3121]
[1727332727660,13.4715,151.01,150.98,3.3121]
[1727332728564,10.16,151.01,150.98,3.3121]
[1727332734564,13.4714,151.02,150.98,3.3121]
[1727332735565,13.4714,151.02,150.97,13.4723]
[1727332735566,3.3116,151.01,150.97,13.4723]
[1727332736165,3.3118,151.0,150.97,3.3123]
[1727332736362,10.16,151.02,150.97,3.3123]
[1727332737964,3.3115,151.01,150.97,3.3123]
[1727332739367,3.3115,151.01,150.97,13.4723]
[1727332739965,3.3115,151.01,150.97,3.3123]
[1727332740164,10.16,151.02,150.97,3.3123]
[1727332740165,3.3118,151.0,150.97,3.3123]
[1727332740470,10.16,151.01,150.96,13.4726]
[1727332740984,3.3119,150.99,150.96,13.4726]
[1727332741269,10.16,151.01,150.96,13.4726]
[1727332741671,3.3118,151.0,150.96,13.4726]
[1727332742063,13.4716,151.01,150.97,3.3123]
[1727332745274,3.3114,151.02,150.98,10.16]
[1727332745474,11.439,151.04,150.98,10.16]
[1727332745669,3.3112,151.03,150.99,3.3118]
[1727332745869,3.3112,151.03,150.98,10.16]
[1727332746870,3.3112,151.03,151.0,3.3117]
[1727332751874,3.3112,151.03,150.95,72.81943932]
[1727332751875,10.16,151.01,150.84,72.82708968]
[1727332752082,10.16,151.01,150.85,21.44841582]
[1727332752083,10.16,150.92,150.85,21.44841582]
[1727332752278,3.3131,150.94,150.89,3.3141]
[1727332752483,10.16,150.93,150.89,3.3141]
[1727332752981,13.4733,150.93,150.88,9.81193515]
[1727332753176,13.4733,150.93,150.88,3.3143]
[1727332754981,3.3133,150.93,150.88,13.4743]
[1727332755380,3.23802656,151.03,150.92,10.16]
[1727332755582,10.16,150.99,150.94,10.16]
[1727332756378,3.3124,150.97,150.94,10.16]
[1727332756584,10.16,150.99,150.94,10.16]
[1727332756977,10.16,150.98,150.9,1.3718]
[1727332757285,10.16,150.98,150.92,10.16]
[1727332757486,10.16,150.97,150.92,10.16]
[1727332758684,10.16,150.97,150.9,1.3718]
[1727332758889,10.16,150.96,150.9,11.5318]
[1727332759585,3.3129,150.95,150.9,14.8457]
[1727332759888,4.52571201,151.04,150.91,10.16]
[1727332760085,3.3127,150.96,150.91,13.4735]
[1727332760281,3.3127,150.96,150.91,10.16]
[1727332760886,3.3127,150.96,150.93,10.16]
[1727332761691,3.3129,150.95,150.93,10.16]
[1727332763787,10.16,150.97,150.93,10.16]
[1727332763990,3.3127,150.96,150.93,10.16]
[1727332765592,3.3127,150.96,150.94,10.16]
[1727332767594,3.3124,150.97,150.94,10.16]
[1727332768393,3.3126,150.96,150.94,10.16]
[1727332770795,3.3126,150.96,150.93,10.16]
[1727332771896,3.3126,150.96,150.93,13.4732]
[1727332772893,3.3125,150.97,150.93,13.4732]
[1727332773093,10.16,150.99,150.94,13.473]
[1727332773288,10.16,150.99,150.94,10.16]
[1727332773901,3.3125,150.97,150.94,10.16]
[1727332774395,3.3125,150.97,150.94,13.473]
[1727332781611,10.16,150.97,150.91,1.3243]
[1727332781806,10.16,150.96,150.91,11.4843]
[1727332782207,3.3126,150.96,150.92,10.16]
[1727332782411,3.3126,150.96,150.91,4.6378]
[1727332782412,10.16,150.98,150.93,10.16]
[1727332782813,4.52571201,151.04,150.94,3.33930258]
[1727332783014,10.16,150.99,150.94,3.33930258]
[1727332783209,10.16,150.99,150.93,10.16]
[1727332783407,3.3124,150.97,150.93,13.4731]
[1727332785614,3.3124,150.97,150.93,3.3131]
[1727332785911,3.3127,150.96,150.92,13.4734]
[1727332788317,3.3124,150.97,150.93,3.3132]
[1727332789111,13.4722,150.98,150.93,13.4732]
[1727332789418,10.16,150.97,150.93,3.3132]
[1727332790915,13.4725,150.97,150.93,3.3132]
[1727332794120,13.4725,150.97,150.93,13.4732]
[1727332795315,3.3122,150.98,150.94,3.313]
[1727332796924,3.3122,150.98,150.94,13.473]
[1727332797322,3.3122,150.98,150.95,3.3127]
[1727332804837,1.279,151.04,150.97,10.16]
[1727332805036,10.16,151.03,150.98,10.16]
[1727332805334,10.16,151.03,150.95,1.3111]
[1727332805335,10.16,151.03,150.99,10.16]
[1727332805924,13.4712,151.03,151.0,3.3116]
[1727332811738,3.3113,151.02,150.99,13.4718]
[1727332812238,3.3113,151.02,150.99,3.3118]
[1727332815943,3.3113,151.02,150.98,13.4721]
[1727332815944,3.3115,151.01,150.98,13.4721]
[1727332816347,3.3115,151.01,150.98,3.3121]
[1727332818045,3.3113,151.02,150.98,13.4721]
[1727332818246,3.3113,151.02,150.99,10.16]